[Event "Titled Tuesday Blitz January 31 Late 2023"]
[White "Kozak, Adam"]
[Black "Urazayev, Arystanbek"]
[WhiteFideId "753246"]
[BlackFideId "13709810"]
[WhiteElo "2572"]
[BlackElo "2460"]
[Result "1/2-1/2"]
[Round "05"]
[TimeControl "180+2"]
[Date "2023.01.31"]
[WhiteClock "0:00:02"]
[BlackClock "0:00:12"]

1. c4 {[%clk 0:02:50]}  e6 {[%clk 0:03:00]} 2. Nc3 {[%clk 0:02:50]}  d5 {[%clk 0:03:00]} 3. d4 {[%clk 0:02:49]}  Nf6 {[%clk 0:03:01]} 4. cxd5 {[%clk 0:02:48]}  exd5 {[%clk 0:03:02]} 5. Bf4 {[%clk 0:02:47]}  Bd6 {[%clk 0:02:58]} 6. Bg3 {[%clk 0:02:46]}  c6 {[%clk 0:02:57]} 7. e3 {[%clk 0:02:46]}  Bf5 {[%clk 0:02:55]} 8. Qb3 {[%clk 0:02:43]}  b6 {[%clk 0:02:22]} 9. Nf3 {[%clk 0:02:41]}  Bxg3 {[%clk 0:02:16]} 10. hxg3 {[%clk 0:02:41]}  O-O {[%clk 0:02:17]} 11. Be2 {[%clk 0:02:40]}  Re8 {[%clk 0:02:13]} 12. Rc1 {[%clk 0:02:37]}  Nbd7 {[%clk 0:02:09]} 13. O-O {[%clk 0:02:36]}  h5 {[%clk 0:02:07]} 14. Rfd1 {[%clk 0:02:35]}  Rc8 {[%clk 0:02:03]} 15. Qa3 {[%clk 0:02:32]}  a5 {[%clk 0:01:55]} 16. Qd6 {[%clk 0:02:32]}  Qe7 {[%clk 0:01:43]} 17. Qxe7 {[%clk 0:02:28]}  Rxe7 {[%clk 0:01:44]} 18. Ba6 {[%clk 0:02:28]}  Rb8 {[%clk 0:01:44]} 19. Be2 {[%clk 0:02:18]}  b5 {[%clk 0:01:37]} 20. Nb1 {[%clk 0:02:11]}  Rb6 {[%clk 0:01:37]} 21. Nbd2 {[%clk 0:02:10]}  Ne4 {[%clk 0:01:36]} 22. Nxe4 {[%clk 0:02:10]}  Bxe4 {[%clk 0:01:36]} 23. Nd2 {[%clk 0:02:10]}  Bg6 {[%clk 0:01:33]} 24. Nb3 {[%clk 0:02:09]}  a4 {[%clk 0:01:33]} 25. Nc5 {[%clk 0:02:01]}  Nxc5 {[%clk 0:01:33]} 26. Rxc5 {[%clk 0:02:02]}  f6 {[%clk 0:01:34]} 27. Rdc1 {[%clk 0:02:01]}  Be8 {[%clk 0:01:34]} 28. Bf3 {[%clk 0:01:59]}  Kf8 {[%clk 0:01:34]} 29. Kf1 {[%clk 0:01:59]}  g5 {[%clk 0:01:33]} 30. Ke1 {[%clk 0:02:00]}  g4 {[%clk 0:01:32]} 31. Be2 {[%clk 0:02:00]}  f5 {[%clk 0:01:29]} 32. Kd2 {[%clk 0:02:00]}  Kg7 {[%clk 0:01:25]} 33. Bd3 {[%clk 0:01:59]}  Kf6 {[%clk 0:01:24]} 34. Kc3 {[%clk 0:01:59]}  b4+ {[%clk 0:01:07]} 35. Kd2 {[%clk 0:01:59]}  Ra7 {[%clk 0:01:06]} 36. a3 {[%clk 0:01:53]}  bxa3 {[%clk 0:01:01]} 37. bxa3 {[%clk 0:01:54]}  Rb3 {[%clk 0:00:58]} 38. R5c3 {[%clk 0:01:54]}  Rb2+ {[%clk 0:00:53]} 39. R1c2 {[%clk 0:01:54]}  Rb6 {[%clk 0:00:52]} 40. Ra2 {[%clk 0:01:45]}  Rab7 {[%clk 0:00:49]} 41. Bc2 {[%clk 0:01:45]}  Ra7 {[%clk 0:00:33]} 42. Kc1 {[%clk 0:01:45]}  Rab7 {[%clk 0:00:24]} 43. Rc5 {[%clk 0:01:43]}  Bg6 {[%clk 0:00:17]} 44. Ra5 {[%clk 0:01:39]}  f4 {[%clk 0:00:17]} 45. exf4 {[%clk 0:01:38]}  Bxc2 {[%clk 0:00:16]} 46. Rxc2 {[%clk 0:01:38]}  Rb1+ {[%clk 0:00:16]} 47. Kd2 {[%clk 0:01:39]}  Rf1 {[%clk 0:00:17]} 48. Rxc6+ {[%clk 0:01:37]}  Kf5 {[%clk 0:00:12]} 49. Ke2 {[%clk 0:01:25]}  Rbb1 {[%clk 0:00:10]} 50. Rxd5+ {[%clk 0:01:05]}  Ke4 {[%clk 0:00:10]} 51. Re5+ {[%clk 0:01:05]}  Kxd4 {[%clk 0:00:11]} 52. Rd6+ {[%clk 0:01:06]}  Kc4 {[%clk 0:00:11]} 53. Rc6+ {[%clk 0:00:12]}  Kd4 {[%clk 0:00:11]} 54. Rd6+ {[%clk 0:00:03]}  Kc4 {[%clk 0:00:11]} 55. Rc6+ {[%clk 0:00:02]}  Kd4 {[%clk 0:00:12]} 1/2-1/2


[Site "https://www.chess.com"]

[Event "Titled Tuesday Blitz January 31 Late 2023"]
[White "Boruchovsky, Avital"]
[Black "Dominguez Perez, Leinier"]
[WhiteFideId "2800055"]
[BlackFideId "3503240"]
[WhiteElo "2539"]
[BlackElo "2739"]
[Result "0-1"]
[Round "05"]
[TimeControl "180+2"]
[Date "2023.01.31"]
[WhiteClock "0:00:08"]
[BlackClock "0:00:03"]

1. e4 {[%clk 0:03:00]}  Nf6 {[%clk 0:02:59]} 2. e5 {[%clk 0:03:00]}  Nd5 {[%clk 0:02:59]} 3. c4 {[%clk 0:03:00]}  Nb6 {[%clk 0:02:59]} 4. Nc3 {[%clk 0:03:00]}  d6 {[%clk 0:02:59]} 5. exd6 {[%clk 0:03:00]}  exd6 {[%clk 0:02:59]} 6. d4 {[%clk 0:02:54]}  Be7 {[%clk 0:02:59]} 7. Be3 {[%clk 0:02:54]}  O-O {[%clk 0:02:58]} 8. Bd3 {[%clk 0:02:54]}  Na6 {[%clk 0:02:57]} 9. b3 {[%clk 0:02:50]}  Nb4 {[%clk 0:02:53]} 10. Bb1 {[%clk 0:02:50]}  c6 {[%clk 0:02:53]} 11. a3 {[%clk 0:02:47]}  Na6 {[%clk 0:02:53]} 12. Nge2 {[%clk 0:02:46]}  d5 {[%clk 0:02:53]} 13. c5 {[%clk 0:02:45]}  Nd7 {[%clk 0:02:54]} 14. Ng3 {[%clk 0:02:43]}  Re8 {[%clk 0:02:52]} 15. O-O {[%clk 0:02:43]}  Nc7 {[%clk 0:02:50]} 16. b4 {[%clk 0:02:42]}  Nf8 {[%clk 0:02:33]} 17. Nf5 {[%clk 0:02:32]}  Bxf5 {[%clk 0:02:29]} 18. Bxf5 {[%clk 0:02:33]}  g6 {[%clk 0:02:30]} 19. Bd3 {[%clk 0:02:32]}  Bf6 {[%clk 0:02:30]} 20. a4 {[%clk 0:02:29]}  Nce6 {[%clk 0:02:25]} 21. Ne2 {[%clk 0:02:26]}  Bg7 {[%clk 0:02:09]} 22. b5 {[%clk 0:02:20]}  Qh4 {[%clk 0:02:08]} 23. Rb1 {[%clk 0:02:09]}  Re7 {[%clk 0:01:48]} 24. bxc6 {[%clk 0:02:01]}  bxc6 {[%clk 0:01:49]} 25. Ba6 {[%clk 0:02:01]}  Rae8 {[%clk 0:01:39]} 26. Qd2 {[%clk 0:02:01]}  Bf6 {[%clk 0:01:26]} 27. Rb7 {[%clk 0:01:25]}  Ng7 {[%clk 0:01:24]} 28. Rxe7 {[%clk 0:01:23]}  Rxe7 {[%clk 0:01:24]} 29. Bc8 {[%clk 0:01:00]}  Nfe6 {[%clk 0:01:23]} 30. Rb1 {[%clk 0:00:52]}  Nf5 {[%clk 0:01:14]} 31. g3 {[%clk 0:00:18]}  Qg4 {[%clk 0:00:59]} 32. Rb8 {[%clk 0:00:16]}  Kg7 {[%clk 0:00:52]} 33. Nf4 {[%clk 0:00:11]}  Nxf4 {[%clk 0:00:24]} 34. Bxf4 {[%clk 0:00:11]}  h5 {[%clk 0:00:24]} 35. Bxf5 {[%clk 0:00:10]}  Qxf5 {[%clk 0:00:25]} 36. Bh6+ {[%clk 0:00:10]}  Kh7 {[%clk 0:00:25]} 37. Be3 {[%clk 0:00:11]}  h4 {[%clk 0:00:20]} 38. Qa5 {[%clk 0:00:10]}  h3 {[%clk 0:00:13]} 39. Qd8 {[%clk 0:00:10]}  Rxe3 {[%clk 0:00:13]} 40. Qg8+ {[%clk 0:00:10]}  Kh6 {[%clk 0:00:14]} 41. fxe3 {[%clk 0:00:10]}  Qc2 {[%clk 0:00:09]} 42. Kf1 {[%clk 0:00:07]}  Qd1+ {[%clk 0:00:06]} 43. Kf2 {[%clk 0:00:08]}  Qd2+ {[%clk 0:00:06]} 44. Kf1 {[%clk 0:00:08]}  Qxh2 {[%clk 0:00:05]} 45. Qxf7 {[%clk 0:00:07]}  Qg2+ {[%clk 0:00:06]} 46. Ke1 {[%clk 0:00:07]}  h2 {[%clk 0:00:05]} 47. Qf8+ {[%clk 0:00:07]}  Bg7 {[%clk 0:00:05]} 48. Qf4+ {[%clk 0:00:07]}  g5 {[%clk 0:00:04]} 49. Qd6+ {[%clk 0:00:08]}  Kh5 {[%clk 0:00:04]} 50. g4+ {[%clk 0:00:08]}  Kh4 {[%clk 0:00:03]} 51. Rh8+ {[%clk 0:00:08]}  Bxh8 {[%clk 0:00:03]} 0-1


[Site "https://www.chess.com"]

[Event "Titled Tuesday Blitz January 31 Late 2023"]
[White "Nakamura, Hikaru"]
[Black "Yoo, Christopher Woojin"]
[WhiteFideId "2016192"]
[BlackFideId "30909694"]
[WhiteElo "2775"]
[BlackElo "2607"]
[Result "1-0"]
[Round "05"]
[TimeControl "180+2"]
[Date "2023.01.31"]
[WhiteClock "0:01:09"]
[BlackClock "0:00:23"]

1. Nf3 {[%clk 0:03:00]}  Nf6 {[%clk 0:02:59]} 2. e3 {[%clk 0:03:00]}  d5 {[%clk 0:02:59]} 3. c4 {[%clk 0:03:00]}  e6 {[%clk 0:02:59]} 4. d4 {[%clk 0:02:59]}  Nbd7 {[%clk 0:02:57]} 5. Nc3 {[%clk 0:02:56]}  c6 {[%clk 0:02:57]} 6. Bd3 {[%clk 0:02:55]}  dxc4 {[%clk 0:02:55]} 7. Bxc4 {[%clk 0:02:56]}  b5 {[%clk 0:02:56]} 8. Bb3 {[%clk 0:02:50]}  b4 {[%clk 0:02:31]} 9. Na4 {[%clk 0:02:47]}  Bb7 {[%clk 0:02:30]} 10. Qe2 {[%clk 0:02:42]}  Qa5 {[%clk 0:02:17]} 11. Nd2 {[%clk 0:02:33]}  c5 {[%clk 0:02:06]} 12. O-O {[%clk 0:02:27]}  Be7 {[%clk 0:01:48]} 13. Nc4 {[%clk 0:02:09]}  Qa6 {[%clk 0:01:46]} 14. Bd2 {[%clk 0:01:30]}  cxd4 {[%clk 0:01:41]} 15. exd4 {[%clk 0:01:29]}  O-O {[%clk 0:01:41]} 16. Rfc1 {[%clk 0:01:24]}  Rfc8 {[%clk 0:01:24]} 17. Bd1 {[%clk 0:01:21]}  Bc6 {[%clk 0:01:11]} 18. b3 {[%clk 0:01:22]}  Bb5 {[%clk 0:01:08]} 19. Nab2 {[%clk 0:01:19]}  Nb6 {[%clk 0:00:53]} 20. Qe1 {[%clk 0:01:17]}  Nxc4 {[%clk 0:00:42]} 21. bxc4 {[%clk 0:01:15]}  Bxc4 {[%clk 0:00:43]} 22. Rxc4 {[%clk 0:01:14]}  Rxc4 {[%clk 0:00:39]} 23. Be2 {[%clk 0:01:14]}  Rac8 {[%clk 0:00:38]} 24. Nxc4 {[%clk 0:01:12]}  Rxc4 {[%clk 0:00:39]} 25. Qf1 {[%clk 0:01:10]}  Ne4 {[%clk 0:00:24]} 26. Bxc4 {[%clk 0:01:10]}  Qa3 {[%clk 0:00:23]} 27. Be3 {[%clk 0:01:09]} 1-0


[Site "https://www.chess.com"]

[Event "Titled Tuesday Blitz January 31 Late 2023"]
[White "Kazakouski, Valery"]
[Black "Abdrlauf, Elham"]
[WhiteFideId "13507443"]
[BlackFideId "1533533"]
[WhiteElo "2539"]
[BlackElo "2518"]
[Result "1-0"]
[Round "05"]
[TimeControl "180+2"]
[Date "2023.01.31"]
[WhiteClock "0:00:31"]
[BlackClock "0:00:02"]

1. Nf3 {[%clk 0:03:00]}  d5 {[%clk 0:02:59]} 2. c4 {[%clk 0:03:00]}  e6 {[%clk 0:02:59]} 3. b3 {[%clk 0:03:00]}  Nf6 {[%clk 0:02:59]} 4. Bb2 {[%clk 0:03:00]}  c6 {[%clk 0:03:00]} 5. g3 {[%clk 0:03:00]}  Bd6 {[%clk 0:03:00]} 6. Bg2 {[%clk 0:03:00]}  O-O {[%clk 0:03:01]} 7. O-O {[%clk 0:03:01]}  Nbd7 {[%clk 0:03:01]} 8. Qc2 {[%clk 0:03:01]}  Qe7 {[%clk 0:03:01]} 9. Nc3 {[%clk 0:03:02]}  b6 {[%clk 0:02:56]} 10. e4 {[%clk 0:03:02]}  Bb7 {[%clk 0:02:48]} 11. d4 {[%clk 0:02:49]}  dxe4 {[%clk 0:02:46]} 12. Nxe4 {[%clk 0:02:50]}  Nxe4 {[%clk 0:02:47]} 13. Qxe4 {[%clk 0:02:51]}  Nf6 {[%clk 0:02:47]} 14. Qh4 {[%clk 0:02:51]}  Ba3 {[%clk 0:02:48]} 15. Bxa3 {[%clk 0:02:48]}  Qxa3 {[%clk 0:02:49]} 16. Ne5 {[%clk 0:02:49]}  Rac8 {[%clk 0:02:41]} 17. Rfd1 {[%clk 0:02:45]}  Rfd8 {[%clk 0:02:40]} 18. Rd2 {[%clk 0:02:45]}  h6 {[%clk 0:02:20]} 19. Rad1 {[%clk 0:02:44]}  a5 {[%clk 0:02:15]} 20. g4 {[%clk 0:02:22]}  Qe7 {[%clk 0:02:12]} 21. Qg3 {[%clk 0:01:51]}  Nd7 {[%clk 0:01:40]} 22. f4 {[%clk 0:01:42]}  Nxe5 {[%clk 0:01:21]} 23. fxe5 {[%clk 0:01:42]}  Rd7 {[%clk 0:01:22]} 24. h4 {[%clk 0:01:39]}  Rcd8 {[%clk 0:01:22]} 25. g5 {[%clk 0:01:39]}  hxg5 {[%clk 0:00:30]} 26. hxg5 {[%clk 0:01:40]}  g6 {[%clk 0:00:19]} 27. Qf4 {[%clk 0:01:03]}  Kg7 {[%clk 0:00:16]} 28. Qf6+ {[%clk 0:00:46]}  Kg8 {[%clk 0:00:10]} 29. Kf2 {[%clk 0:00:43]}  Qxf6+ {[%clk 0:00:06]} 30. gxf6 {[%clk 0:00:44]}  a4 {[%clk 0:00:03]} 31. b4 {[%clk 0:00:35]}  Ba6 {[%clk 0:00:03]} 32. Bxc6 {[%clk 0:00:34]}  Rc7 {[%clk 0:00:03]} 33. b5 {[%clk 0:00:33]}  Bb7 {[%clk 0:00:03]} 34. d5 {[%clk 0:00:32]}  Bc8 {[%clk 0:00:01]} 35. dxe6 {[%clk 0:00:31]}  Bxe6 {[%clk 0:00:02]} 36. Rxd8+ {[%clk 0:00:31]} 1-0


[Site "https://www.chess.com"]

[Event "Titled Tuesday Blitz January 31 Late 2023"]
[White "Babazada, Khazar"]
[Black "Bernadskiy, Vitaliy"]
[WhiteFideId "13413554"]
[BlackFideId "14100371"]
[WhiteElo "2474"]
[BlackElo "2592"]
[Result "1-0"]
[Round "05"]
[TimeControl "180+2"]
[Date "2023.01.31"]
[WhiteClock "0:00:56"]
[BlackClock "0:00:02"]

1. Nf3 {[%clk 0:03:00]}  Nf6 {[%clk 0:00:26]} 2. g3 {[%clk 0:03:01]}  g6 {[%clk 0:00:26]} 3. Bg2 {[%clk 0:03:01]}  Bg7 {[%clk 0:00:27]} 4. O-O {[%clk 0:03:02]}  d5 {[%clk 0:00:28]} 5. d3 {[%clk 0:03:02]}  O-O {[%clk 0:00:29]} 6. Nbd2 {[%clk 0:03:03]}  Nc6 {[%clk 0:00:29]} 7. e4 {[%clk 0:03:04]}  e5 {[%clk 0:00:30]} 8. exd5 {[%clk 0:03:04]}  Nxd5 {[%clk 0:00:31]} 9. Re1 {[%clk 0:03:04]}  Re8 {[%clk 0:00:30]} 10. a3 {[%clk 0:03:05]}  h6 {[%clk 0:00:30]} 11. Rb1 {[%clk 0:03:05]}  a5 {[%clk 0:00:22]} 12. c4 {[%clk 0:02:52]}  Nde7 {[%clk 0:00:22]} 13. Ne4 {[%clk 0:02:53]}  Nf5 {[%clk 0:00:17]} 14. b4 {[%clk 0:02:51]}  axb4 {[%clk 0:00:17]} 15. axb4 {[%clk 0:02:52]}  Ncd4 {[%clk 0:00:17]} 16. Nxd4 {[%clk 0:02:50]}  Nxd4 {[%clk 0:00:18]} 17. Bb2 {[%clk 0:02:49]}  c6 {[%clk 0:00:18]} 18. c5 {[%clk 0:02:46]}  Nb5 {[%clk 0:00:16]} 19. Qc2 {[%clk 0:02:36]}  Bf5 {[%clk 0:00:11]} 20. Ra1 {[%clk 0:02:35]}  Qc7 {[%clk 0:00:08]} 21. Nd2 {[%clk 0:02:05]}  Rad8 {[%clk 0:00:07]} 22. Be4 {[%clk 0:02:06]}  Bxe4 {[%clk 0:00:05]} 23. dxe4 {[%clk 0:02:00]}  Qd7 {[%clk 0:00:05]} 24. Nc4 {[%clk 0:01:58]}  Qd3 {[%clk 0:00:05]} 25. Qxd3 {[%clk 0:01:39]}  Rxd3 {[%clk 0:00:06]} 26. Re3 {[%clk 0:01:40]}  Rxe3 {[%clk 0:00:05]} 27. fxe3 {[%clk 0:01:41]}  Rd8 {[%clk 0:00:05]} 28. Bxe5 {[%clk 0:01:32]}  Bxe5 {[%clk 0:00:05]} 29. Nxe5 {[%clk 0:01:33]}  Nc3 {[%clk 0:00:05]} 30. Ra7 {[%clk 0:01:31]}  Re8 {[%clk 0:00:03]} 31. Nd7 {[%clk 0:01:30]}  Nxe4 {[%clk 0:00:03]} 32. Rxb7 {[%clk 0:01:30]}  Kg7 {[%clk 0:00:03]} 33. Nb8 {[%clk 0:01:20]}  Nc3 {[%clk 0:00:03]} 34. Nxc6 {[%clk 0:01:17]}  Rxe3 {[%clk 0:00:03]} 35. Nd8 {[%clk 0:01:17]}  Re1+ {[%clk 0:00:03]} 36. Kf2 {[%clk 0:01:14]}  Re8 {[%clk 0:00:03]} 37. Rxf7+ {[%clk 0:01:02]}  Kg8 {[%clk 0:00:03]} 38. Rd7 {[%clk 0:01:02]}  Ne4+ {[%clk 0:00:03]} 39. Kg2 {[%clk 0:00:59]}  Ng5 {[%clk 0:00:03]} 40. h4 {[%clk 0:00:56]}  Ne4 {[%clk 0:00:02]} 41. c6 {[%clk 0:00:56]} 1-0


[Site "https://www.chess.com"]

[Event "Titled Tuesday Blitz January 31 Late 2023"]
[White "So, Wesley"]
[Black "Timmermans, Mark"]
[WhiteFideId "5202213"]
[BlackFideId "1026399"]
[WhiteElo "2760"]
[BlackElo "2392"]
[Result "1-0"]
[Round "05"]
[TimeControl "180+2"]
[Date "2023.01.31"]
[WhiteClock "0:00:24"]
[BlackClock "0:00:39"]

1. e4 {[%clk 0:03:00]}  e5 {[%clk 0:02:59]} 2. Nf3 {[%clk 0:02:58]}  Nc6 {[%clk 0:02:59]} 3. Bc4 {[%clk 0:02:56]}  Nf6 {[%clk 0:02:59]} 4. d3 {[%clk 0:02:55]}  Be7 {[%clk 0:02:58]} 5. O-O {[%clk 0:02:54]}  O-O {[%clk 0:02:59]} 6. Re1 {[%clk 0:02:54]}  d6 {[%clk 0:02:58]} 7. a4 {[%clk 0:02:54]}  Kh8 {[%clk 0:02:56]} 8. Nc3 {[%clk 0:02:51]}  Ng8 {[%clk 0:02:55]} 9. Nd5 {[%clk 0:02:49]}  f5 {[%clk 0:02:55]} 10. c3 {[%clk 0:02:45]}  Bf6 {[%clk 0:02:54]} 11. b4 {[%clk 0:02:37]}  Nce7 {[%clk 0:02:53]} 12. b5 {[%clk 0:02:21]}  Nxd5 {[%clk 0:02:52]} 13. Bxd5 {[%clk 0:02:21]}  Ne7 {[%clk 0:02:51]} 14. Bb3 {[%clk 0:02:22]}  Qe8 {[%clk 0:02:50]} 15. exf5 {[%clk 0:02:15]}  Bxf5 {[%clk 0:02:49]} 16. d4 {[%clk 0:02:15]}  e4 {[%clk 0:02:47]} 17. Nd2 {[%clk 0:02:13]}  d5 {[%clk 0:02:46]} 18. Nf1 {[%clk 0:02:13]}  Bh4 {[%clk 0:02:35]} 19. g3 {[%clk 0:02:01]}  Bf6 {[%clk 0:02:32]} 20. Ne3 {[%clk 0:02:00]}  Qd7 {[%clk 0:02:17]} 21. Ba3 {[%clk 0:01:51]}  c6 {[%clk 0:02:10]} 22. Rb1 {[%clk 0:01:41]}  Bg5 {[%clk 0:02:00]} 23. bxc6 {[%clk 0:01:38]}  bxc6 {[%clk 0:02:01]} 24. Nxf5 {[%clk 0:01:33]}  Qxf5 {[%clk 0:02:00]} 25. Qe2 {[%clk 0:01:27]}  Qh3 {[%clk 0:01:49]} 26. Qf1 {[%clk 0:01:25]}  Qxf1+ {[%clk 0:01:40]} 27. Rxf1 {[%clk 0:01:26]}  Rf3 {[%clk 0:01:41]} 28. h4 {[%clk 0:01:21]}  Bf6 {[%clk 0:01:38]} 29. Rbc1 {[%clk 0:01:15]}  Nf5 {[%clk 0:01:33]} 30. Bd1 {[%clk 0:01:14]}  Nxd4 {[%clk 0:01:33]} 31. Bb2 {[%clk 0:00:59]}  Ne6 {[%clk 0:01:09]} 32. Bxf3 {[%clk 0:00:58]}  exf3 {[%clk 0:01:10]} 33. Ba3 {[%clk 0:00:54]}  g5 {[%clk 0:01:06]} 34. Rfe1 {[%clk 0:00:53]}  Ng7 {[%clk 0:01:05]} 35. hxg5 {[%clk 0:00:35]}  Bxg5 {[%clk 0:01:06]} 36. Rcd1 {[%clk 0:00:29]}  h5 {[%clk 0:01:02]} 37. Rd3 {[%clk 0:00:29]}  h4 {[%clk 0:00:54]} 38. gxh4 {[%clk 0:00:30]}  Bxh4 {[%clk 0:00:54]} 39. Rxf3 {[%clk 0:00:30]}  Kg8 {[%clk 0:00:50]} 40. Be7 {[%clk 0:00:26]}  Re8 {[%clk 0:00:49]} 41. Rfe3 {[%clk 0:00:26]}  Nf5 {[%clk 0:00:48]} 42. Bxh4 {[%clk 0:00:26]}  Rxe3 {[%clk 0:00:39]} 43. Rxe3 {[%clk 0:00:27]}  Nxh4 {[%clk 0:00:39]} 44. Re8+ {[%clk 0:00:24]} 1-0


[Site "https://www.chess.com"]

[Event "Titled Tuesday Blitz January 31 Late 2023"]
[White "Pranav, V"]
[Black "Hambleton, Aman"]
[WhiteFideId "25060783"]
[BlackFideId "2606577"]
[WhiteElo "2597"]
[BlackElo "2420"]
[Result "1-0"]
[Round "05"]
[TimeControl "180+2"]
[Date "2023.01.31"]
[WhiteClock "0:00:52"]
[BlackClock "0:00:01"]

1. e4 {[%clk 0:02:58]}  c5 {[%clk 0:02:57]} 2. Nf3 {[%clk 0:02:57]}  e6 {[%clk 0:02:57]} 3. d4 {[%clk 0:02:57]}  cxd4 {[%clk 0:02:58]} 4. Nxd4 {[%clk 0:02:58]}  Nc6 {[%clk 0:02:58]} 5. Nc3 {[%clk 0:02:58]}  Qc7 {[%clk 0:02:58]} 6. Be2 {[%clk 0:02:59]}  a6 {[%clk 0:02:59]} 7. O-O {[%clk 0:02:59]}  b5 {[%clk 0:02:59]} 8. Nxc6 {[%clk 0:02:53]}  Qxc6 {[%clk 0:03:00]} 9. Bd3 {[%clk 0:02:52]}  Bb7 {[%clk 0:02:54]} 10. Re1 {[%clk 0:02:48]}  Nf6 {[%clk 0:02:38]} 11. Bg5 {[%clk 0:02:42]}  Be7 {[%clk 0:02:14]} 12. a3 {[%clk 0:02:36]}  h6 {[%clk 0:01:56]} 13. Bh4 {[%clk 0:02:35]}  d6 {[%clk 0:01:49]} 14. Bf1 {[%clk 0:02:32]}  O-O {[%clk 0:01:44]} 15. Qd3 {[%clk 0:02:23]}  Rac8 {[%clk 0:01:39]} 16. Rad1 {[%clk 0:02:22]}  Rfe8 {[%clk 0:01:29]} 17. h3 {[%clk 0:02:16]}  Qc5 {[%clk 0:00:54]} 18. Bg3 {[%clk 0:01:56]}  d5 {[%clk 0:00:49]} 19. exd5 {[%clk 0:01:52]}  Nxd5 {[%clk 0:00:50]} 20. Be5 {[%clk 0:01:51]}  Nxc3 {[%clk 0:00:25]} 21. Bxc3 {[%clk 0:01:52]}  Red8 {[%clk 0:00:15]} 22. Qg3 {[%clk 0:01:42]}  Qg5 {[%clk 0:00:16]} 23. Rxd8+ {[%clk 0:01:42]}  Bxd8 {[%clk 0:00:12]} 24. Qd3 {[%clk 0:01:16]}  Bd5 {[%clk 0:00:05]} 25. a4 {[%clk 0:01:12]}  Rb8 {[%clk 0:00:03]} 26. axb5 {[%clk 0:01:09]}  axb5 {[%clk 0:00:03]} 27. Re5 {[%clk 0:01:03]}  Qf4 {[%clk 0:00:01]} 28. Re3 {[%clk 0:00:55]}  Qc4 {[%clk 0:00:01]} 29. Qd2 {[%clk 0:00:53]}  Qc6 {[%clk 0:00:01]} 30. Rg3 {[%clk 0:00:53]}  g6 {[%clk 0:00:01]} 31. Qxh6 {[%clk 0:00:53]}  e5 {[%clk 0:00:01]} 32. Bxe5 {[%clk 0:00:52]}  Bf6 {[%clk 0:00:01]} 33. Bxb8 {[%clk 0:00:52]} 1-0


[Site "https://www.chess.com"]

[Event "Titled Tuesday Blitz January 31 Late 2023"]
[White "Svane, Rasmus"]
[Black "Harshavardhan G B"]
[WhiteFideId "4657101"]
[BlackFideId "25059009"]
[WhiteElo "2623"]
[BlackElo "2408"]
[Result "1-0"]
[Round "05"]
[TimeControl "180+2"]
[Date "2023.01.31"]
[WhiteClock "0:00:22"]
[BlackClock "0:00:05"]

1. Nf3 {[%clk 0:03:00]}  Nf6 {[%clk 0:02:58]} 2. g3 {[%clk 0:03:01]}  g6 {[%clk 0:02:57]} 3. Bg2 {[%clk 0:03:01]}  Bg7 {[%clk 0:02:57]} 4. O-O {[%clk 0:03:01]}  O-O {[%clk 0:02:58]} 5. d4 {[%clk 0:03:00]}  d6 {[%clk 0:02:58]} 6. Re1 {[%clk 0:03:01]}  d5 {[%clk 0:02:57]} 7. c4 {[%clk 0:03:00]}  c6 {[%clk 0:02:56]} 8. Qb3 {[%clk 0:03:00]}  Qb6 {[%clk 0:02:51]} 9. Nc3 {[%clk 0:03:00]}  dxc4 {[%clk 0:02:41]} 10. Qxc4 {[%clk 0:03:00]}  Be6 {[%clk 0:02:41]} 11. Qa4 {[%clk 0:02:56]}  Na6 {[%clk 0:02:39]} 12. e4 {[%clk 0:02:55]}  Rfd8 {[%clk 0:02:36]} 13. Qc2 {[%clk 0:02:08]}  Nb4 {[%clk 0:02:34]} 14. Qe2 {[%clk 0:02:02]}  a5 {[%clk 0:02:19]} 15. a3 {[%clk 0:02:02]}  Na6 {[%clk 0:02:18]} 16. h3 {[%clk 0:02:01]}  Qb3 {[%clk 0:02:02]} 17. Be3 {[%clk 0:01:55]}  Qc4 {[%clk 0:01:56]} 18. Qc2 {[%clk 0:01:48]}  Qb3 {[%clk 0:01:51]} 19. Qc1 {[%clk 0:01:47]}  Bd7 {[%clk 0:01:19]} 20. d5 {[%clk 0:01:17]}  c5 {[%clk 0:01:19]} 21. Nd2 {[%clk 0:01:13]}  Qb6 {[%clk 0:01:18]} 22. Nc4 {[%clk 0:01:14]}  Qa7 {[%clk 0:01:16]} 23. e5 {[%clk 0:01:14]}  Ne8 {[%clk 0:01:16]} 24. Bg5 {[%clk 0:01:11]}  b5 {[%clk 0:01:11]} 25. Nxa5 {[%clk 0:01:11]}  Qc7 {[%clk 0:00:46]} 26. e6 {[%clk 0:00:56]}  Qxa5 {[%clk 0:00:41]} 27. Bxe7 {[%clk 0:00:57]}  Bc8 {[%clk 0:00:29]} 28. exf7+ {[%clk 0:00:54]}  Kxf7 {[%clk 0:00:28]} 29. d6 {[%clk 0:00:54]}  Be6 {[%clk 0:00:04]} 30. Qf4+ {[%clk 0:00:32]}  Nf6 {[%clk 0:00:03]} 31. Ne4 {[%clk 0:00:32]}  Bf5 {[%clk 0:00:03]} 32. Nxf6 {[%clk 0:00:25]}  Bxf6 {[%clk 0:00:04]} 33. Bd5+ {[%clk 0:00:24]}  Kg7 {[%clk 0:00:04]} 34. Bxf6+ {[%clk 0:00:24]}  Kxf6 {[%clk 0:00:05]} 35. Qe5+ {[%clk 0:00:21]}  Kg5 {[%clk 0:00:05]} 36. Qe7+ {[%clk 0:00:21]}  Kh6 {[%clk 0:00:05]} 37. Qh4+ {[%clk 0:00:22]}  Kg7 {[%clk 0:00:05]} 38. Re7+ {[%clk 0:00:22]}  Kf8 {[%clk 0:00:05]} 39. Qf6# {[%clk 0:00:22]} 1-0


[Site "https://www.chess.com"]

[Event "Titled Tuesday Blitz January 31 Late 2023"]
[White "Dardha, Daniel"]
[Black "Wieczorek, Oskar"]
[WhiteFideId "240990"]
[BlackFideId "1133950"]
[WhiteElo "2631"]
[BlackElo "2512"]
[Result "1-0"]
[Round "05"]
[TimeControl "180+2"]
[Date "2023.01.31"]
[WhiteClock "0:00:49"]
[BlackClock "0:00:04"]

1. d4 {[%clk 0:03:00]}  Nf6 {[%clk 0:02:59]} 2. Bg5 {[%clk 0:03:00]}  d5 {[%clk 0:02:53]} 3. e3 {[%clk 0:03:00]}  Nbd7 {[%clk 0:02:51]} 4. Nd2 {[%clk 0:02:50]}  g6 {[%clk 0:02:46]} 5. Bd3 {[%clk 0:02:47]}  Bg7 {[%clk 0:02:47]} 6. f4 {[%clk 0:02:47]}  c5 {[%clk 0:02:46]} 7. c3 {[%clk 0:02:46]}  O-O {[%clk 0:02:46]} 8. Ngf3 {[%clk 0:02:46]}  b6 {[%clk 0:02:46]} 9. Ne5 {[%clk 0:02:43]}  Bb7 {[%clk 0:02:46]} 10. Qf3 {[%clk 0:02:43]}  e6 {[%clk 0:02:26]} 11. h4 {[%clk 0:02:35]}  Qc7 {[%clk 0:02:19]} 12. h5 {[%clk 0:02:31]}  Nxh5 {[%clk 0:01:52]} 13. Nxd7 {[%clk 0:02:02]}  Qxd7 {[%clk 0:01:49]} 14. g4 {[%clk 0:02:03]}  f6 {[%clk 0:01:40]} 15. Bh4 {[%clk 0:01:47]}  e5 {[%clk 0:01:40]} 16. dxe5 {[%clk 0:01:19]}  fxe5 {[%clk 0:01:36]} 17. gxh5 {[%clk 0:01:20]}  e4 {[%clk 0:01:32]} 18. Nxe4 {[%clk 0:01:20]}  dxe4 {[%clk 0:01:31]} 19. Bc4+ {[%clk 0:01:20]}  Kh8 {[%clk 0:01:06]} 20. Qe2 {[%clk 0:01:20]}  gxh5 {[%clk 0:00:42]} 21. Qxh5 {[%clk 0:01:14]}  Qf5 {[%clk 0:00:32]} 22. Bg5 {[%clk 0:01:12]}  Rae8 {[%clk 0:00:13]} 23. O-O-O {[%clk 0:01:12]}  b5 {[%clk 0:00:09]} 24. Bxb5 {[%clk 0:00:57]}  Re6 {[%clk 0:00:09]} 25. Bd7 {[%clk 0:00:55]}  h6 {[%clk 0:00:03]} 26. Bxe6 {[%clk 0:00:49]}  Qxe6 {[%clk 0:00:04]} 27. Bxh6 {[%clk 0:00:49]} 1-0


[Site "https://www.chess.com"]